Workbook

Sheet Sheet1
A1: 2021年怒江州各级事业单位公开招聘人员笔试成绩表（含加分）
A2: 报考职位代码 | B2: 准考证号 | C2: 职业能力倾向测验 | D2: 综合应用能力 | E2: 笔试加分 | F2: 总分
A3: 15399033001000002 | B3: 4253330404217 | C3: 0.00 | D3: 0.00 | F3: =SUM(C3:E3) -> 0.00
A4: 15399033001000003 | B4: 4253330404223 | C4: 103.00 | D4: 106.00 | F4: 209.00
A5: 15399033001000003 | B5: 4253330404823 | C5: 83.50 | D5: 97.00 | E5: 10 | F5: 190.50
A6: 15399033001000003 | B6: 4253330404706 | C6: 91.00 | D6: 90.00 | F6: 181.00
A7: 15399033001000003 | B7: 4253330404324 | C7: 79.50 | D7: 90.00 | E7: 10 | F7: 179.50
A8: 15399033001000003 | B8: 4253330403614 | C8: 82.00 | D8: 87.00 | E8: 10 | F8: 179.00
A9: 15399033001000003 | B9: 4253330404424 | C9: 83.00 | D9: 89.00 | F9: 172.00
A10: 15399033001000003 | B10: 4253330404828 | C10: 71.00 | D10: 97.00 | F10: 168.00
A11: 15399033001000003 | B11: 4253330403626 | C11: 80.50 | D11: 83.00 | F11: 163.50
A12: 15399033001000003 | B12: 4253330405017 | C12: 0.00 | D12: 0.00 | F12: 0.00
A13: 15399033001000003 | B13: 4253330403604 | C13: 0.00 | D13: 0.00 | F13: 0.00
A14: 15399033002000001 | B14: 1153330100226 | C14: 95.50 | D14: 88.50 | E14: 10 | F14: 194.00
A15: 15399033002000001 | B15: 1153330101510 | C15: 93.00 | D15: 94.50 | F15: 187.50
A16: 15399033002000001 | B16: 1153330106011 | C16: 94.50 | D16: 92.00 | F16: 186.50
A17: 15399033002000001 | B17: 1153330102221 | C17: 83.00 | D17: 97.00 | F17: 180.00
A18: 15399033002000001 | B18: 1153330103926 | C18: 89.00 | D18: 88.00 | F18: 177.00
A19: 15399033002000001 | B19: 1153330105411 | C19: 77.00 | D19: 70.00 | F19: 147.00
A20: 15399033002000001 | B20: 1153330100103 | C20: 0.00 | D20: 0.00 | F20: 0.00
A21: 15399033003000001 | B21: 1153330101821 | C21: 81.00 | D21: 107.00 | F21: 188.00
A22: 15399033003000001 | B22: 1153330106404 | C22: 78.50 | D22: 101.00 | F22: 179.50
A23: 15399033003000001 | B23: 1153330103805 | C23: 63.00 | D23: 103.50 | E23: 10 | F23: 176.50
A24: 15399033003000001 | B24: 1153330102217 | C24: 74.00 | D24: 93.50 | F24: 167.50
A25: 15399033003000001 | B25: 1153330101011 | C25: 50.00 | D25: 65.00 | F25: 115.00
A26: 15399033003000001 | B26: 1153330105218 | C26: 59.00 | D26: 43.00 | F26: 102.00
A27: 15399033003000001 | B27: 1153330107106 | C27: 0.00 | D27: 0.00 | F27: 0.00
A28: 15399033003000001 | B28: 1153330103515 | C28: 0.00 | D28: 0.00 | F28: 0.00
A29: 15399033003000001 | B29: 1153330102228 | C29: 0.00 | D29: 0.00 | F29: 0.00
A30: 15399033003000001 | B30: 1153330102112 | C30: 0.00 | D30: 0.00 | F30: 0.00
A31: 15399033003000002 | B31: 1153330101021 | C31: 98.50 | D31: 113.00 | E31: 15 | F31: 226.50
A32: 15399033003000002 | B32: 1153330104802 | C32: 95.50 | D32: 108.00 | F32: 203.50
A33: 15399033003000002 | B33: 1153330103229 | C33: 90.00 | D33: 111.50 | F33: 201.50
A34: 15399033003000002 | B34: 1153330101212 | C34: 100.50 | D34: 100.50 | F34: 201.00
A35: 15399033003000002 | B35: 1153330103221 | C35: 89.00 | D35: 107.50 | F35: 196.50
A36: 15399033003000002 | B36: 1153330107007 | C36: 86.00 | D36: 98.00 | E36: 10 | F36: 194.00
A37: 15399033003000002 | B37: 1153330105811 | C37: 89.00 | D37: 103.50 | F37: 192.50
A38: 15399033003000002 | B38: 1153330101511 | C38: 84.50 | D38: 103.00 | F38: 187.50
A39: 15399033003000002 | B39: 1153330100825 | C39: 85.00 | D39: 101.00 | F39: 186.00
A40: 15399033003000002 | B40: 1153330107112 | C40: 69.50 | D40: 106.50 | E40: 10 | F40: 186.00
A41: 15399033003000002 | B41: 1153330103525 | C41: 87.00 | D41: 95.50 | F41: 182.50
A42: 15399033003000002 | B42: 1153330106515 | C42: 77.50 | D42: 103.00 | F42: 180.50
A43: 15399033003000002 | B43: 1153330104906 | C43: 77.50 | D43: 89.50 | E43: 10 | F43: 177.00
A44: 15399033003000002 | B44: 1153330102821 | C44: 64.50 | D44: 100.00 | E44: 10 | F44: 174.50
A45: 15399033003000002 | B45: 1153330106924 | C45: 76.00 | D45: 97.00 | F45: 173.00
A46: 15399033003000002 | B46: 1153330107206 | C46: 75.50 | D46: 87.00 | E46: 10 | F46: 172.50
A47: 15399033003000002 | B47: 1153330106129 | C47: 69.50 | D47: 85.00 | E47: 10 | F47: 164.50
A48: 15399033003000002 | B48: 1153330103222 | C48: 82.50 | D48: 80.50 | F48: 163.00
A49: 15399033003000002 | B49: 1153330106228 | C49: 63.00 | D49: 99.00 | F49: 162.00
A50: 15399033003000002 | B50: 1153330105803 | C50: 78.50 | D50: 81.00 | F50: 159.50
A51: 15399033003000002 | B51: 1153330106403 | C51: 51.50 | D51: 92.00 | E51: 10 | F51: 153.50
A52: 15399033003000002 | B52: 1153330107129 | C52: 73.50 | D52: 65.00 | E52: 10 | F52: 148.50
A53: 15399033003000002 | B53: 1153330105322 | C53: 69.50 | D53: 78.00 | F53: 147.50
A54: 15399033003000002 | B54: 1153330103413 | C54: 80.50 | D54: 63.00 | F54: 143.50
A55: 15399033003000002 | B55: 1153330101929 | C55: 64.00 | D55: 69.00 | F55: 133.00
A56: 15399033003000002 | B56: 1153330107017 | C56: 55.00 | D56: 23.00 | E56: 10 | F56: 88.00
A57: 15399033003000002 | B57: 1153330107205 | C57: 0.00 | D57: 0.00 | F57: 0.00
A58: 15399033004000001 | B58: 1153330105001 | C58: 110.50 | D58: 103.00 | F58: 213.50
A59: 15399033004000001 | B59: 1153330106715 | C59: 100.00 | D59: 111.50 | F59: 211.50
A60: 15399033004000001 | B60: 1153330101908 | C60: 79.00 | D60: 114.00 | E60: 10 | F60: 203.00
A61: 15399033004000001 | B61: 1153330104818 | C61: 89.50 | D61: 102.00 | E61: 10 | F61: 201.50
A62: 15399033004000001 | B62: 1153330105308 | C62: 90.00 | D62: 105.50 | F62: 195.50
A63: 15399033004000001 | B63: 1153330106128 | C63: 100.00 | D63: 95.00 | F63: 195.00
A64: 15399033004000001 | B64: 1153330105808 | C64: 82.50 | D64: 110.00 | F64: 192.50
A65: 15399033004000001 | B65: 1153330103126 | C65: 69.50 | D65: 105.00 | E65: 10 | F65: 184.50
A66: 15399033004000001 | B66: 1153330107030 | C66: 95.50 | D66: 88.00 | F66: 183.50
A67: 15399033004000001 | B67: 1153330100415 | C67: 71.00 | D67: 91.00 | E67: 10 | F67: =SUM(C67:E67) -> 172.00
A68: 15399033004000001 | B68: 1153330102216 | C68: 77.00 | D68: 94.00 | F68: 171.00
A69: 15399033004000001 | B69: 1153330105915 | C69: 71.00 | D69: 86.00 | F69: 157.00
A70: 15399033004000001 | B70: 1153330102019 | C70: 62.00 | D70: 75.00 | F70: 137.00
A71: 15399033004000001 | B71: 1153330100729 | C71: 47.00 | D71: 32.00 | F71: 79.00
A72: 15399033005000001 | B72: 2153330500513 | C72: 104.50 | D72: 95.00 | E72: 10 | F72: 209.50
A73: 15399033005000001 | B73: 2153330500218 | C73: 79.00 | D73: 103.00 | E73: 10 | F73: 192.00
A74: 15399033005000001 | B74: 2153330500222 | C74: 88.00 | D74: 98.50 | F74: 186.50
A75: 15399033005000001 | B75: 2153330500219 | C75: 82.50 | D75: 102.50 | F75: 185.00
A76: 15399033005000001 | B76: 2153330500607 | C76: 83.50 | D76: 91.50 | E76: 10 | F76: 185.00
A77: 15399033005000001 | B77: 2153330500616 | C77: 77.50 | D77: 85.00 | E77: 10 | F77: 172.50
A78: 15399033005000001 | B78: 2153330500517 | C78: 69.50 | D78: 93.00 | E78: 10 | F78: 172.50
A79: 15399033005000001 | B79: 2153330500322 | C79: 66.50 | D79: 95.00 | E79: 10 | F79: 171.50
A80: 15399033005000001 | B80: 2153330500625 | C80: 70.00 | D80: 97.00 | F80: 167.00
A81: 15399033005000001 | B81: 2153330500518 | C81: 72.50 | D81: 93.00 | F81: 165.50
A82: 15399033005000001 | B82: 2153330500409 | C82: 72.50 | D82: 93.00 | F82: 165.50
A83: 15399033005000001 | B83: 2153330500104 | C83: 64.50 | D83: 88.00 | E83: 10 | F83: 162.50
A84: 15399033005000001 | B84: 2153330500506 | C84: 71.00 | D84: 90.00 | F84: 161.00
A85: 15399033005000001 | B85: 2153330500407 | C85: 100.00 | D85: 59.00 | F85: 159.00
A86: 15399033005000001 | B86: 2153330500420 | C86: 69.50 | D86: 87.00 | F86: 156.50
A87: 15399033005000001 | B87: 2153330500627 | C87: 73.00 | D87: 67.00 | E87: 10 | F87: 150.00
A88: 15399033005000001 | B88: 2153330500501 | C88: 81.00 | D88: 64.50 | F88: 145.50
A89: 15399033005000001 | B89: 2153330500526 | C89: 75.00 | D89: 66.00 | F89: 141.00
A90: 15399033005000001 | B90: 2153330500318 | C90: 73.50 | D90: 57.00 | E90: 10 | F90: 140.50
A91: 15399033005000001 | B91: 2153330500316 | C91: 61.50 | D91: 76.00 | F91: 137.50
A92: 15399033005000001 | B92: 2153330500509 | C92: 61.00 | D92: 60.00 | F92: 121.00
A93: 15399033005000001 | B93: 2153330500715 | C93: 79.50 | D93: 39.50 | F93: 119.00
A94: 15399033005000001 | B94: 2153330500125 | C94: 62.50 | D94: 56.00 | F94: 118.50
A95: 15399033005000001 | B95: 2153330500620 | C95: 42.00 | D95: 50.00 | F95: 92.00
A96: 15399033005000001 | B96: 2153330500329 | C96: 0.00 | D96: 0.00 | F96: 0.00
A97: 15399033005000001 | B97: 2153330500217 | C97: 0.00 | D97: 0.00 | F97: 0.00
A98: 15399033005000001 | B98: 2153330500106 | C98: 0.00 | D98: 0.00 | F98: 0.00
A99: 15399033006000001 | B99: 2153330500120 | C99: 108.50 | D99: 93.00 | E99: 10 | F99: 211.50
A100: 15399033006000001 | B100: 2153330500312 | C100: 86.00 | D100: 107.50 | F100: 193.50
A101: 15399033006000001 | B101: 2153330500324 | C101: 76.50 | D101: 68.00 | E101: 10 | F101: 154.50
A102: 15399033006000001 | B102: 2153330500619 | C102: 0.00 | D102: 0.00 | F102: 0.00
A103: 15399033006000002 | B103: 2153330500128 | C103: 102.00 | D103: 115.00 | E103: 10 | F103: 227.00
A104: 15399033006000002 | B104: 2153330500411 | C104: 105.00 | D104: 93.00 | E104: 10 | F104: 208.00
A105: 15399033006000002 | B105: 2153330500727 | C105: 94.00 | D105: 103.00 | E105: 10 | F105: 207.00
A106: 15399033006000002 | B106: 2153330500402 | C106: 94.00 | D106: 95.00 | E106: 10 | F106: 199.00
A107: 15399033006000002 | B107: 2153330500814 | C107: 96.00 | D107: 99.50 | F107: 195.50
A108: 15399033006000002 | B108: 2153330500422 | C108: 88.50 | D108: 93.50 | E108: 10 | F108: 192.00
A109: 15399033006000002 | B109: 2153330500430 | C109: 77.50 | D109: 103.00 | F109: 180.50
A110: 15399033006000002 | B110: 2153330500809 | C110: 79.00 | D110: 95.00 | F110: 174.00
A111: 15399033006000002 | B111: 2153330500112 | C111: 86.00 | D111: 86.00 | F111: 172.00
A112: 15399033006000002 | B112: 2153330500115 | C112: 79.50 | D112: 91.00 | F112: 170.50
A113: 15399033006000002 | B113: 2153330500724 | C113: 57.50 | D113: 91.00 | F113: 148.50
A114: 15399033006000002 | B114: 2153330500723 | C114: 75.50 | D114: 73.00 | F114: 148.50
A115: 15399033006000002 | B115: 2153330500522 | C115: 71.50 | D115: 67.00 | E115: 10 | F115: 148.50
A116: 15399033006000002 | B116: 2153330500321 | C116: 66.50 | D116: 77.00 | F116: 143.50
A117: 15399033006000002 | B117: 2153330500512 | C117: 73.00 | D117: 53.00 | F117: 126.00
A118: 15399033006000002 | B118: 2153330500404 | C118: 52.00 | D118: 68.00 | F118: 120.00
A119: 15399033007000001 | B119: 1153330103625 | C119: 113.00 | D119: 83.00 | E119: 10 | F119: 206.00
A120: 15399033007000001 | B120: 1153330102023 | C120: 94.00 | D120: 93.00 | E120: 10 | F120: 197.00
A121: 15399033007000001 | B121: 1153330106318 | C121: 93.00 | D121: 98.50 | F121: 191.50
A122: 15399033007000001 | B122: 1153330105519 | C122: 93.50 | D122: 91.00 | F122: 184.50
A123: 15399033007000001 | B123: 1153330105301 | C123: 79.00 | D123: 105.00 | F123: 184.00
A124: 15399033007000001 | B124: 1153330106324 | C124: 82.00 | D124: 99.50 | F124: 181.50
A125: 15399033007000001 | B125: 1153330100203 | C125: 77.50 | D125: 100.00 | F125: 177.50
A126: 15399033007000001 | B126: 1153330106718 | C126: 75.00 | D126: 98.00 | F126: 173.00
A127: 15399033007000001 | B127: 1153330106906 | C127: 76.50 | D127: 82.00 | F127: 158.50
A128: 15399033007000001 | B128: 1153330102414 | C128: 63.50 | D128: 86.00 | F128: 149.50
A129: 15399033007000001 | B129: 1153330101630 | C129: 73.00 | D129: 74.00 | F129: 147.00
A130: 15399033007000001 | B130: 1153330102226 | C130: 68.00 | D130: 67.00 | F130: 135.00
A131: 15399033007000001 | B131: 1153330107022 | C131: 51.50 | D131: 82.00 | F131: =SUM(C131:E131) -> 133.50
A132: 15399033007000001 | B132: 1153330107207 | C132: 63.00 | D132: 49.00 | E132: 10 | F132: 122.00
A133: 15399033007000001 | B133: 1153330100221 | C133: 55.00 | D133: 65.00 | F133: 120.00
A134: 15399033007000001 | B134: 1153330103701 | C134: 0.00 | D134: 0.00 | F134: 0.00
A135: 15399033007000001 | B135: 1153330102005 | C135: 0.00 | D135: 0.00 | F135: 0.00
A136: 15399033007000001 | B136: 1153330101130 | C136: 0.00 | D136: 0.00 | F136: 0.00
A137: 15399033008000001 | B137: 1153330103010 | C137: 96.50 | D137: 116.00 | F137: 212.50
A138: 15399033008000001 | B138: 1153330106514 | C138: 96.50 | D138: 110.50 | F138: 207.00
A139: 15399033008000001 | B139: 1153330102305 | C139: 95.00 | D139: 111.50 | F139: 206.50
A140: 15399033008000001 | B140: 1153330100304 | C140: 99.00 | D140: 89.00 | E140: 10 | F140: 198.00
A141: 15399033008000001 | B141: 1153330107006 | C141: 84.50 | D141: 100.00 | F141: 184.50
A142: 15399033008000001 | B142: 1153330103122 | C142: 88.00 | D142: 96.00 | F142: 184.00
A143: 15399033008000001 | B143: 1153330102513 | C143: 96.00 | D143: 86.00 | F143: 182.00
A144: 15399033008000001 | B144: 1153330102708 | C144: 94.00 | D144: 85.00 | F144: 179.00
A145: 15399033008000001 | B145: 1153330104318 | C145: 84.00 | D145: 93.00 | F145: 177.00
A146: 15399033008000001 | B146: 1153330105415 | C146: 85.00 | D146: 85.00 | F146: 170.00
A147: 15399033008000001 | B147: 1153330105528 | C147: 74.00 | D147: 80.00 | E147: 10 | F147: 164.00
A148: 15399033008000001 | B148: 1153330106221 | C148: 72.00 | D148: 90.00 | F148: 162.00
A149: 15399033008000001 | B149: 1153330100316 | C149: 84.00 | D149: 78.00 | F149: 162.00
A150: 15399033008000001 | B150: 1153330104923 | C150: 68.50 | D150: 76.00 | E150: 15 | F150: 159.50
A151: 15399033008000001 | B151: 1153330101825 | C151: 74.00 | D151: 76.00 | F151: 150.00
A152: 15399033008000001 | B152: 1153330107502 | C152: 78.00 | D152: 62.00 | E152: 10 | F152: 150.00
A153: 15399033008000001 | B153: 1153330100609 | C153: 53.00 | D153: 67.00 | E153: 10 | F153: 130.00
A154: 15399033008000001 | B154: 1153330105408 | C154: 0.00 | D154: 0.00 | F154: 0.00
A155: 15399033008000001 | B155: 1153330104727 | C155: 0.00 | D155: 0.00 | F155: 0.00
A156: 15399033008000001 | B156: 1153330102324 | C156: 0.00 | D156: 0.00 | F156: 0.00
A157: 15399033009000001 | B157: 1153330102406 | C157: 93.00 | D157: 116.00 | F157: 209.00
A158: 15399033009000001 | B158: 1153330100117 | C158: 101.50 | D158: 103.50 | F158: 205.00
A159: 15399033009000001 | B159: 1153330101607 | C159: 95.00 | D159: 103.00 | F159: 198.00
A160: 15399033009000001 | B160: 1153330106603 | C160: 89.00 | D160: 107.50 | F160: 196.50
A161: 15399033009000001 | B161: 1153330103806 | C161: 79.50 | D161: 107.00 | F161: 186.50
A162: 15399033009000001 | B162: 1153330105229 | C162: 83.00 | D162: 89.50 | F162: 172.50
A163: 15399033009000001 | B163: 1153330100811 | C163: 74.50 | D163: 98.00 | F163: 172.50
A164: 15399033009000001 | B164: 1153330107427 | C164: 68.00 | D164: 95.00 | F164: 163.00
A165: 15399033009000001 | B165: 1153330100104 | C165: 66.50 | D165: 85.00 | E165: 10 | F165: 161.50
A166: 15399033009000001 | B166: 1153330106027 | C166: 66.00 | D166: 95.00 | F166: 161.00
A167: 15399033009000001 | B167: 1153330106617 | C167: 78.50 | D167: 80.00 | F167: 158.50
A168: 15399033009000001 | B168: 1153330106524 | C168: 61.00 | D168: 94.00 | F168: 155.00
A169: 15399033009000001 | B169: 1153330101012 | C169: 62.00 | D169: 92.00 | F169: 154.00
A170: 15399033009000001 | B170: 1153330102423 | C170: 74.50 | D170: 66.00 | F170: 140.50
A171: 15399033009000001 | B171: 1153330102623 | C171: 75.00 | D171: 55.00 | E171: 10 | F171: 140.00
A172: 15399033009000001 | B172: 1153330101228 | C172: 70.50 | D172: 69.00 | F172: 139.50
A173: 15399033009000001 | B173: 1153330105209 | C173: 64.50 | D173: 61.00 | E173: 10 | F173: 135.50
A174: 15399033009000001 | B174: 1153330106316 | C174: 0.00 | D174: 0.00 | F174: 0.00
A175: 15399033009000001 | B175: 1153330103130 | C175: 0.00 | D175: 0.00 | F175: 0.00
A176: 15399033009000001 | B176: 1153330101016 | C176: 0.00 | D176: 0.00 | F176: 0.00
A177: 15399033009000002 | B177: 1153330100230 | C177: 88.50 | D177: 122.00 | F177: 210.50
A178: 15399033009000002 | B178: 1153330105922 | C178: 96.00 | D178: 109.00 | F178: 205.00
A179: 15399033009000002 | B179: 1153330100725 | C179: 101.50 | D179: 103.00 | F179: 204.50
A180: 15399033009000002 | B180: 1153330102028 | C180: 92.00 | D180: 111.50 | F180: 203.50
A181: 15399033009000002 | B181: 1153330107417 | C181: 98.00 | D181: 105.00 | F181: 203.00
A182: 15399033009000002 | B182: 1153330107019 | C182: 103.50 | D182: 94.00 | F182: 197.50
A183: 15399033009000002 | B183: 1153330101808 | C183: 93.00 | D183: 92.00 | F183: 185.00
A184: 15399033009000002 | B184: 1153330100127 | C184: 72.00 | D184: 108.00 | F184: 180.00
A185: 15399033009000002 | B185: 1153330102225 | C185: 71.00 | D185: 96.00 | F185: 167.00
A186: 15399033009000002 | B186: 1153330105720 | C186: 90.50 | D186: 74.00 | F186: 164.50
A187: 15399033009000002 | B187: 1153330103622 | C187: 73.50 | D187: 90.00 | F187: 163.50
A188: 15399033009000002 | B188: 1153330104517 | C188: 88.50 | D188: 72.00 | F188: 160.50
A189: 15399033009000002 | B189: 1153330107203 | C189: 76.00 | D189: 72.00 | F189: 148.00
A190: 15399033009000002 | B190: 1153330106102 | C190: 63.00 | D190: 83.00 | F190: 146.00
A191: 15399033009000002 | B191: 1153330102804 | C191: 61.00 | D191: 74.00 | F191: 135.00
A192: 15399033009000002 | B192: 1153330106903 | C192: 51.50 | D192: 78.00 | F192: 129.50
A193: 15399033009000002 | B193: 1153330105413 | C193: 54.50 | D193: 71.00 | F193: 125.50
A194: 15399033009000002 | B194: 1153330106211 | C194: 54.00 | D194: 51.00 | F194: 105.00
A195: 15399033009000002 | B195: 1153330106116 | C195: 0.00 | D195: 0.00 | F195: =SUM(C195:E195) -> 0.00
A196: 15399033009000002 | B196: 1153330106029 | C196: 0.00 | D196: 0.00 | F196: 0.00
A197: 15399033009000002 | B197: 1153330105321 | C197: 0.00 | D197: 0.00 | F197: 0.00
A198: 15399033010000001 | B198: 3153330306528 | C198: 103.00 | D198: 93.00 | F198: 196.00
A199: 15399033010000001 | B199: 3153330306329 | C199: 98.00 | D199: 83.00 | E199: 10 | F199: 191.00
A200: 15399033010000001 | B200: 3153330303112 | C200: 95.00 | D200: 90.50 | F200: 185.50
... 8973 more rows
